fUST/lending_fUST_20241016
["ID","MTS","AMOUNT","RATE_DAILY","PERIOD"]
[340320363,1729043441780,-500.0,0.00022995,2]
[340320364,1729043441790,-500.0,0.00022995,2]
[340320365,1729043441799,-502.09753144,0.00022995,2]
[340320366,1729043441809,-500.0,0.00022995,2]
[340320367,1729043441819,-500.0,0.00022995,2]
[340320368,1729043441831,-200.0,0.00022995,2]
[340320369,1729043441840,-500.0,0.00022995,2]
[340320370,1729043441850,-500.0,0.00022995,2]
[340320371,1729043441860,-500.0,0.00022995,2]
[340320372,1729043441870,-522.84935816,0.00022995,2]
[340320373,1729043441880,-512.32749091,0.00022995,2]
[340320374,1729043441889,-500.0,0.00022995,2]
[340320375,1729043441899,-500.0,0.00022995,2]
[340320376,1729043441910,-500.0,0.00022995,2]
[340320377,1729043441919,-612.8,0.00022995,2]
[340320378,1729043441929,-500.0,0.00022995,2]
[340320379,1729043441939,-502.97416177,0.00022995,2]
[340320380,1729043441948,-500.0,0.00022995,2]
[340320381,1729043441958,-500.0,0.00022995,2]
[340320382,1729043441968,-500.0,0.00022995,2]
[340320383,1729043441977,-500.0,0.00022995,2]
[340320384,1729043441986,-500.0,0.00022995,2]
[340320385,1729043441996,-500.0,0.00022995,2]
[340320386,1729043442005,-507.60791742,0.00022995,2]
[340320387,1729043442014,-500.0,0.00022995,2]
[340320388,1729043442024,-634.63308985,0.00022995,2]
[340320389,1729043442033,-500.0,0.00022995,2]
[340320390,1729043442044,-500.0,0.00022995,2]
[340320391,1729043442053,-500.0,0.00022995,2]
[340320392,1729043442151,-500.0,0.00022995,2]
[340320393,1729043442160,-500.0,0.00022995,2]
[340320394,1729043442169,-500.0,0.00022995,2]
[340320395,1729043442179,-500.0,0.00022995,2]
[340320396,1729043442187,-500.0,0.00022995,2]
[340320397,1729043442197,-500.0,0.00022995,2]
[340320398,1729043442207,-500.0,0.00022995,2]
[340320399,1729043442216,-152.07066031,0.00022995,2]
[340320400,1729043442226,-500.0,0.00022995,2]
[340320401,1729043442235,-698.63,0.00022995,2]
[340320402,1729043442245,-500.0,0.00022995,2]
[340320403,1729043442256,-500.0,0.00022995,2]
[340320404,1729043442265,-500.0,0.00022995,2]
[340320405,1729043442275,-500.0,0.00022995,2]
[340320406,1729043442284,-500.0,0.00022995,2]
[340320407,1729043442293,-467.16318965,0.00022995,2]
[340320408,1729043442303,-500.0,0.00022995,2]
[340320409,1729043442312,-500.0,0.00022995,2]
[340320410,1729043442321,-500.0,0.00022995,2]
[340320411,1729043442331,-500.0,0.00022995,2]
[340320412,1729043442340,-500.0,0.00022995,2]
[340320413,1729043442349,-500.0,0.00022995,2]
[340320414,1729043442358,-500.0,0.00022995,2]
[340320415,1729043442367,-505.4490258,0.00022995,2]
[340320416,1729043442376,-500.0,0.00022995,2]
[340320417,1729043442386,-658.94,0.00022995,2]
[340320418,1729043442396,-500.0,0.00022995,2]
[340320419,1729043442405,-500.0,0.00022995,2]
[340320420,1729043442415,-500.0,0.00022995,2]
[340320421,1729043442424,-1459.77,0.00022995,2]
[340320422,1729043442433,-500.0,0.00022995,2]
[340320423,1729043442442,-1239.03,0.00022995,2]
[340320424,1729043442452,-500.0,0.00022995,2]
[340320425,1729043442462,-500.0,0.00022995,2]
[340320426,1729043442471,-94393.2860629,0.00023,2]
[340320427,1729043442480,-26260.04490629,0.00023003,3]
[340320476,1729043626972,-581.8,0.00026,31]
[340320477,1729043627041,-635.09564303,0.00027397,60]
[340320480,1729043645491,400.0,0.00027397,60]
[340320481,1729043670704,155.91433391,0.00028,30]
[340320500,1729044003901,500.0,0.0001,2]
[340320501,1729044004271,500.0,0.0001,2]
[340320502,1729044005161,500.0,0.0001,2]
[340320515,1729044257479,400.88362099,0.00027397,60]
[340320520,1729044375169,6609.0,0.00028,30]
[340320522,1729044412037,0.41075904,0.00027397,60]
[340320523,1729044412059,275.87442896,0.00027397,60]
[340320525,1729044427774,359.0,0.00027397,60]
[340320526,1729044430944,0.22121407,0.00027397,60]
[340320527,1729044435831,156.0,0.00022,120]
[340320529,1729044449334,163.98751,0.00021718,2]
[340320530,1729044474656,3665.083747,0.00027,60]
[340320532,1729044508102,276.06397393,0.00027,60]
[340320533,1729044515804,401.35613983,0.00027,60]
[340320534,1729044551326,7389.06616838,0.00021924,2]
[340320535,1729044560426,172.9929818,0.00021918,2]
[340320595,1729044640596,-7389.06616838,0.00022214,2]
[340320596,1729044640606,-1155.64622033,0.0002247,2]
[340320597,1729044640620,-241.0,0.00022543,2]
[340320598,1729044640629,-7389.06616839,0.00022544,2]
[340320599,1729044640639,-500.0,0.00022568,2]
[340320600,1729044640648,-500.0,0.00022568,2]
[340320601,1729044640658,-500.0,0.00022568,2]
[340320602,1729044640667,-500.0,0.00022568,2]
[340320603,1729044640676,-500.0,0.00022568,2]
[340320604,1729044640686,-519.61523476,0.00022568,2]
[340320605,1729044640695,-500.0,0.00022568,2]
[340320606,1729044640705,-500.0,0.00022568,2]
[340320607,1729044640715,-500.0,0.00022568,2]
[340320608,1729044640724,-500.0,0.00022568,2]
[340320609,1729044640734,-500.0,0.00022568,2]
[340320610,1729044640744,-500.0,0.00022568,2]
[340320611,1729044640753,-500.0,0.00022568,2]
[340320612,1729044640764,-500.0,0.00022568,2]
[340320613,1729044640773,-496.25570638,0.00022568,2]
[340320614,1729044640783,-500.0,0.00022568,2]
[340320615,1729044640794,-500.0,0.00022568,2]
[340320616,1729044640803,-500.0,0.00022568,2]
[340320617,1729044640813,-500.0,0.00022568,2]
[340320618,1729044640822,-500.0,0.00022568,2]
[340320619,1729044640832,-500.0,0.00022568,2]
[340320620,1729044640841,-315.07742554,0.00022568,2]
[340320621,1729044640851,-500.0,0.00022568,2]
[340320622,1729044640861,-500.0,0.00022568,2]
[340320623,1729044640870,-500.0,0.00022568,2]
[340320624,1729044640879,-500.0,0.00022568,2]
[340320625,1729044640888,-500.0,0.00022568,2]
[340320626,1729044640898,-500.0,0.00022568,2]
[340320627,1729044640907,-500.0,0.00022568,2]
[340320628,1729044640916,-500.0,0.00022568,2]
[340320629,1729044640926,-500.0,0.00022568,2]
[340320630,1729044640935,-500.0,0.00022568,2]
[340320631,1729044640944,-500.0,0.00022568,2]
[340320632,1729044640954,-500.0,0.00022568,2]
[340320633,1729044640964,-500.0,0.00022568,2]
[340320634,1729044640973,-500.0,0.00022568,2]
[340320635,1729044640982,-500.0,0.00022568,2]
[340320636,1729044640992,-500.0,0.00022568,2]
[340320637,1729044641001,-500.0,0.00022568,2]
[340320638,1729044641010,-500.0,0.00022568,2]
[340320639,1729044641019,-874.38406434,0.00022569,2]
[340320640,1729044641028,-641.16899679,0.00022569,2]
[340320641,1729044641037,-500.0,0.00022569,2]
[340320642,1729044641047,-500.0,0.00022569,2]
[340320643,1729044641056,-500.0,0.00022569,2]
[340320644,1729044641066,-500.0,0.00022569,2]
[340320645,1729044641075,-500.0,0.00022569,2]
[340320646,1729044641084,-809.51,0.00022569,2]
[340320647,1729044641093,-500.0,0.00022569,2]
[340320648,1729044641103,-18262.71,0.00022569,2]
[340320649,1729044641114,-500.0,0.00022569,2]
[340320650,1729044641123,-500.0,0.00022569,2]
[340320651,1729044641132,-530.46482161,0.00022569,2]
[340320652,1729044641141,-963.95,0.00022569,2]
[340320653,1729044641150,-512.96729974,0.00022569,2]
[340320654,1729044641159,-500.0,0.00022569,2]
[340320655,1729044641169,-68974.03,0.00022569,2]
[340320656,1729044641178,-589.08,0.00022569,2]
[340320657,1729044641187,-553.69662725,0.00022569,2]
[340320658,1729044641197,-6474.32,0.00022569,2]
[340320659,1729044641206,-932.44,0.0002257,2]
[340320660,1729044641215,-516.16913167,0.0002257,2]
[340320661,1729044641225,-1870.64,0.0002257,2]
[340320662,1729044641234,-500.0,0.0002257,2]
[340320663,1729044641244,-500.0,0.0002257,2]
[340320664,1729044641257,-1055.86,0.0002257,2]
[340320665,1729044641266,-500.0,0.0002257,2]
[340320666,1729044641275,-471.65964746,0.0002257,2]
[340320667,1729044641284,-592.98,0.0002257,2]
[340320668,1729044641295,-500.0,0.0002257,2]
[340320669,1729044641305,-153.103,0.00022571,2]
[340320670,1729044641314,-527.0,0.00022571,2]
[340320671,1729044641323,-1157.0,0.00022571,2]
[340320672,1729044641335,-1807.0,0.00022571,2]
[340320673,1729044641345,-1000.0,0.0002277,2]
[340320674,1729044641357,-566.99775321,0.0002278,2]
[340320675,1729044641367,-1000.0,0.000228,2]
[340320676,1729044641376,-1000.0,0.000228,3]
[340320677,1729044641394,-500.0,0.00022843,2]
[340320678,1729044641406,-500.0,0.00022843,2]
[340320679,1729044641416,-500.0,0.00022843,2]
[340320680,1729044641426,-500.0,0.00022843,2]
[340320681,1729044641435,-500.0,0.00022843,2]
[340320682,1729044641445,-809.51,0.00022843,2]
[340320683,1729044641454,-500.0,0.00022843,2]
[340320684,1729044641464,-18262.71,0.00022843,2]
[340320685,1729044641474,-500.0,0.00022843,2]
[340320686,1729044641483,-500.0,0.00022843,2]
[340320687,1729044641492,-963.95,0.00022843,2]
[340320688,1729044641502,-500.0,0.00022843,2]
[340320689,1729044641512,-68974.03,0.00022843,2]
[340320690,1729044641522,-589.08,0.00022843,2]
[340320691,1729044641531,-6474.32,0.00022843,2]
[340320692,1729044641541,-932.44,0.00022844,2]
[340320693,1729044641551,-1870.64,0.00022844,2]
[340320694,1729044641561,-500.0,0.00022844,2]
[340320695,1729044641571,-500.0,0.00022844,2]
[340320696,1729044641580,-1055.86,0.00022844,2]
[340320697,1729044641589,-500.0,0.00022844,2]
[340320698,1729044641599,-592.98,0.00022844,2]
[340320699,1729044641609,-500.0,0.00022844,2]
[340320700,1729044641618,-664.35,0.00022848,3]
[340320701,1729044641628,-327.98946928,0.00022857,2]
[340320702,1729044641638,-302.11858094,0.00022857,2]
[340320703,1729044641648,-291.01663375,0.00022857,2]
[340320704,1729044641658,-500.0,0.00022857,2]
[340320705,1729044641668,-623.62664408,0.00022857,2]
[340320706,1729044641678,-242.81885273,0.00022857,2]
[340320707,1729044641687,-25380.177799,0.00022859,3]
[340320708,1729044641697,-25117.5969392,0.00022859,3]
[340320709,1729044641707,-25380.177799,0.0002286,3]
[340320710,1729044641718,-25117.5969392,0.0002286,3]
[340320711,1729044641727,-4718.66,0.0002287,2]
[340320712,1729044641737,-500.0,0.0002287,2]
[340320713,1729044641748,-500.0,0.0002287,2]
[340320714,1729044641758,-500.0,0.0002287,2]
[340320715,1729044641768,-500.0,0.0002287,2]
[340320716,1729044641777,-500.0,0.0002287,2]
[340320717,1729044641787,-403.80037594,0.0002287,2]
[340320718,1729044641798,-1263.85,0.0002287,2]
[340320719,1729044641808,-500.0,0.0002287,2]
[340320720,1729044641818,-1706.88,0.0002287,2]
[340320721,1729044641827,-500.0,0.0002287,2]
[340320722,1729044641837,-500.0,0.0002287,2]
[340320723,1729044641847,-500.0,0.0002287,2]
[340320724,1729044641857,-500.0,0.0002287,2]
[340320725,1729044641868,-500.0,0.0002287,2]
[340320726,1729044641879,-10942.14,0.0002287,2]
[340320727,1729044641888,-500.0,0.0002287,2]
[340320728,1729044641898,-535.43362687,0.0002287,2]
[340320729,1729044641908,-301.8354596,0.000229,2]
[340320730,1729044641918,-312.11484248,0.00022915,2]
[340320731,1729044641928,-25380.177799,0.00022954,3]
[340320732,1729044641938,-25117.5969392,0.00022954,3]
[340320733,1729044642101,-3000.0,0.00022954,2]
[340320734,1729044642112,-3000.0,0.00022954,2]
[340320735,1729044642121,-3000.0,0.00022954,2]
[340320736,1729044642131,-3000.0,0.00022954,2]
[340320737,1729044642140,-3000.0,0.00022954,2]
[340320738,1729044642149,-3000.0,0.00022954,2]
[340320739,1729044642158,-541.649177,0.00022954,2]
[340320740,1729044642167,-126900.888995,0.00022964,3]
[340320741,1729044642177,-125587.984696,0.00022964,3]
[340320742,1729044642186,-25380.177799,0.00022965,3]
[340320743,1729044642196,-25117.5969392,0.00022965,3]
[340320744,1729044642205,-25380.177799,0.0002297,3]
[340320745,1729044642214,-25117.5969392,0.0002297,3]
[340320746,1729044642223,-700.0,0.00022972,2]
[340320747,1729044642232,-504.00150615,0.00022973,2]
[340320748,1729044642241,-500.4586239,0.00022973,2]
[340320749,1729044642251,-631.33034496,0.00022973,2]
[340320750,1729044642260,-500.0,0.00022973,2]
[340320751,1729044642269,-500.0,0.00022973,2]
[340320752,1729044642279,-262.4308153,0.00022973,2]
[340320753,1729044642287,-500.0,0.00022973,2]
[340320754,1729044642298,-500.0,0.00022973,2]
[340320755,1729044642307,-500.0,0.00022973,2]
[340320756,1729044642316,-500.0,0.00022973,2]
[340320757,1729044642325,-500.0,0.00022973,2]
[340320758,1729044642336,-500.0,0.00022973,2]
[340320759,1729044642346,-501.18977651,0.00022973,2]
[340320760,1729044642355,-500.0,0.00022973,2]
[340320761,1729044642366,-500.0,0.00022973,2]
[340320762,1729044642376,-438.34934323,0.00022973,2]
[340320763,1729044642385,-501.3568998,0.00022973,2]
[340320764,1729044642395,-161.78703657,0.00022973,2]
[340320765,1729044642403,-500.0,0.00022973,2]
[340320766,1729044642417,-339.23825334,0.00022973,2]
[340320767,1729044642426,-574.55591551,0.00022973,2]
[340320768,1729044642436,-200.36852641,0.00022973,2]
[340320769,1729044642445,-500.0,0.00022973,2]
[340320770,1729044642454,-551.39640475,0.00022973,2]
[340320771,1729044642465,-500.91569563,0.00022973,2]
[340320772,1729044642474,-500.0,0.00022973,2]
[340320773,1729044642484,-500.75251806,0.00022973,2]
[340320774,1729044642493,-500.0,0.00022973,2]
[340320775,1729044642502,-500.0,0.00022973,2]
[340320776,1729044642511,-3.80405907,0.00022973,7]
[340320850,1729044643712,-500.0,0.0002287,2]
[340320852,1729044643722,-81.784384,0.000229,5]
[340321321,1729044813257,276.285188,0.00026,31]
[340321327,1729044819124,190.94,0.00022,2]
[340321345,1729044908271,167.0830641,0.00021476,2]
[340321346,1729044909479,234.84241,0.00027,60]
[340321347,1729044916264,234.84241,0.00027,60]
[340321348,1729044924068,234.84241,0.00027,60]
[340321349,1729044932406,234.842412,0.00027,60]
[340321350,1729044950046,234.84241,0.00027,60]
[340321351,1729045017374,190.53621,0.00021731,2]
[340321381,1729045092655,203.8489989,0.00021541,2]
[340321403,1729045272116,6809.74503941,0.00021763,2]
[340321414,1729045500874,166.41463,0.00021641,2]
[340321415,1729045508832,156.0,0.00022,120]
[340321418,1729045532410,165.275252,0.0002144,2]
[340321426,1729045634071,150.0,0.00021969,2]
[340321428,1729045673626,1134.0369844,0.0002133,2]
[340321435,1729045720868,161.84345819,0.00027,120]
[340321437,1729045752706,8160.91933028,0.00021679,2]
[340321483,1729045840601,-5727.87529366,0.00022033,2]
[340321541,1729045841131,-2433.04403662,0.00022033,2]
[340321543,1729045841142,-165.275252,0.00022125,2]
[340321561,1729045841301,-300.0,0.000222,2]
[340321563,1729045841311,-300.0,0.000222,2]
[340321565,1729045841320,-8160.91933028,0.00022201,2]
[340321567,1729045841330,-166.41463,0.00022205,2]
[340321569,1729045841339,-1031.83068147,0.00022268,2]
[340321571,1729045841348,-1798.61886256,0.00022377,2]
[340321573,1729045841358,-1032.68866807,0.0002247,2]
[340321575,1729045841367,-52598.90034674,0.0002247,2]
[340321578,1729045841379,-500.0,0.00022476,2]
[340321580,1729045841388,-500.0,0.00022476,2]
[340321582,1729045841397,-500.0,0.00022476,2]
[340321584,1729045841409,-500.0,0.00022476,2]
[340321586,1729045841421,-519.61523476,0.00022476,2]
[340321588,1729045841431,-500.0,0.00022476,2]
[340321590,1729045841442,-500.0,0.00022476,2]
[340321593,1729045841451,-334.64041239,0.00022476,2]
[340321594,1729045841460,-500.0,0.00022476,2]
[340321596,1729045841469,-500.0,0.00022476,2]
[340321599,1729045841479,-500.0,0.00022476,2]
[340321601,1729045841488,-500.0,0.00022476,2]
[340321603,1729045841497,-500.0,0.00022476,2]
[340321604,1729045841507,-500.0,0.00022476,2]
[340321607,1729045841518,-500.0,0.00022476,2]
[340321609,1729045841527,-500.0,0.00022476,2]
[340321611,1729045841537,-664.35,0.00022477,3]
[340321613,1729045841546,-504.14575391,0.00022477,2]
[340321615,1729045841556,-508.16354622,0.00022477,2]
[340321617,1729045841564,-500.0,0.00022477,2]
[340321619,1729045841573,-500.0,0.00022477,2]
[340321621,1729045841583,-513.03805689,0.00022477,2]
[340321623,1729045841592,-611.57,0.00022477,2]
[340321625,1729045841602,-500.0,0.00022477,2]
[340321627,1729045841611,-500.0,0.00022477,2]
[340321629,1729045841620,-500.0,0.00022477,2]
[340321631,1729045841630,-500.0,0.00022477,2]
[340321633,1729045841639,-55697.71600457,0.00022478,3]
[340321635,1729045841651,-11350.02562053,0.00022478,3]
[340321637,1729045841662,-50235.1938784,0.00022478,3]
[340321639,1729045841671,-382.47836007,0.00022486,2]
[340321641,1729045841681,-500.0,0.00022486,2]
[340321643,1729045841690,-415.71492329,0.00022486,2]
[340321645,1729045841700,-500.0,0.00022486,2]
[340321647,1729045841709,-489.75608545,0.00022486,2]
[340321649,1729045841718,-289.65196321,0.00022486,2]
[340321652,1729045841727,-368.43327618,0.00022486,2]
[340321654,1729045841737,-641.16899679,0.00022487,2]
[340321656,1729045841748,-500.0,0.00022487,2]
[340321658,1729045841757,-500.0,0.00022487,2]
[340321660,1729045841766,-500.0,0.00022487,2]
[340321662,1729045841775,-1336.93,0.00022487,2]
[340321664,1729045841784,-500.0,0.00022487,2]
[340321666,1729045841795,-840.47,0.00022487,2]
[340321668,1729045841807,-500.0,0.00022487,2]
[340321670,1729045841816,-18960.99,0.00022487,2]
[340321672,1729045841825,-530.46482161,0.00022487,2]
[340321674,1729045841835,-512.96729974,0.00022487,2]
[340321676,1729045841844,-500.0,0.00022487,2]
[340321678,1729045841853,-1004.04,0.00022487,2]
[340321680,1729045841862,-23947.58,0.00022487,2]
[340321682,1729045841871,-500.0,0.00022487,2]
[340321684,1729045841881,-500.0,0.00022488,2]
[340321686,1729045841890,-6474.32,0.00022488,2]
[340321688,1729045841899,-599.1,0.00022488,2]
[340321690,1729045841910,-4718.66,0.00022488,2]
[340321692,1729045841920,-516.16913167,0.00022488,2]
[340321694,1729045841929,-1870.64,0.00022488,2]
[340321696,1729045841939,-500.0,0.00022488,2]
[340321698,1729045841948,-500.0,0.00022488,2]
[340321700,1729045841957,-500.0,0.00022488,2]
[340321702,1729045841967,-500.0,0.00022488,2]
[340321705,1729045841976,-500.0,0.00022488,2]
[340321706,1729045841985,-403.80037594,0.00022488,2]
[340321709,1729045841996,-2166.61,0.00022488,2]
[340321711,1729045842005,-1490.59,0.00022488,2]
[340321713,1729045842015,-500.0,0.00022488,2]
[340321715,1729045842025,-500.0,0.00022488,2]
[340321717,1729045842034,-500.0,0.00022488,2]
[340321719,1729045842044,-1055.86,0.00022488,2]
[340321721,1729045842054,-1706.88,0.00022488,2]
[340321723,1729045842064,-500.0,0.00022488,2]
[340321725,1729045842073,-500.0,0.00022488,2]
[340321727,1729045842082,-471.65964746,0.00022488,2]
[340321729,1729045842091,-592.98,0.00022488,2]
[340321731,1729045842101,-500.0,0.00022488,2]
[340321733,1729045842111,-500.0,0.00022488,2]
[340321735,1729045842120,-500.0,0.00022488,2]
[340321737,1729045842132,-500.0,0.00022488,2]
[340321739,1729045842141,-500.0,0.00022488,2]
[340321741,1729045842151,-10942.14,0.00022488,2]
[340321743,1729045842161,-500.0,0.00022488,2]
[340321745,1729045842170,-828.1483632,0.000225,2]
[340321747,1729045842179,-828.1483632,0.000225,2]
[340321749,1729045842188,-479.28159975,0.00022509,2]
[340321751,1729045842198,-33523.8708126,0.00022538,3]
[340321753,1729045842207,-25117.5969392,0.00022538,3]
[340321755,1729045842216,-33523.8708126,0.00022548,3]
[340321757,1729045842226,-25117.5969392,0.00022548,3]
[340321759,1729045842235,-151.0,0.00022548,7]
[340321761,1729045842245,-152.433631,0.00022548,7]
[340321763,1729045842254,-151.0,0.00022548,7]
[340321765,1729045842263,-151.0,0.00022548,7]
[340321767,1729045842272,-151.0,0.00022548,7]
[340321769,1729045842281,-151.0,0.00022548,7]
[340321772,1729045842292,-67047.7416251,0.00022548,3]
[340321774,1729045842302,-50235.1938784,0.00022548,3]
[340321776,1729045842315,-67047.7416251,0.00022558,3]
[340321778,1729045842325,-100470.387757,0.00022558,3]
[340321780,1729045842334,-500.0,0.00022558,2]
[340321782,1729045842344,-972.0,0.00022558,2]
[340321784,1729045842354,-500.0,0.00022558,2]
[340321786,1729045842365,-500.0,0.00022558,2]
[340321788,1729045842374,-500.0,0.00022558,2]
[340321791,1729045842385,-500.0,0.00022558,2]
[340321793,1729045842395,-500.0,0.00022558,2]
[340321795,1729045842406,-513.43179961,0.00022558,2]
[340321797,1729045842417,-500.0,0.00022558,2]
[340321799,1729045842426,-500.0,0.00022558,2]
[340321801,1729045842436,-500.0,0.00022558,2]
[340321803,1729045842445,-400.16006028,0.00022558,2]
[340321805,1729045842454,-500.0,0.00022558,2]
[340321807,1729045842464,-512.15823504,0.00022558,2]
[340321809,1729045842473,-500.0,0.00022558,2]
[340321811,1729045842482,-500.0,0.00022558,2]
[340321813,1729045842491,-1355.57,0.00022558,2]
[340321815,1729045842501,-515.12247936,0.00022558,2]
[340321817,1729045842510,-500.0,0.00022558,2]
[340321819,1729045842519,-500.0,0.00022558,2]
[340321821,1729045842528,-500.0,0.00022558,2]
[340321823,1729045842538,-2555.43,0.00022558,2]
[340321825,1729045842547,-500.0,0.00022558,2]
[340321827,1729045842557,-500.0,0.00022558,2]
[340321829,1729045842565,-500.0,0.00022558,2]
[340321831,1729045842575,-513.72453929,0.00022558,2]
[340321833,1729045842584,-500.0,0.00022558,2]
[340321835,1729045842594,-500.0,0.00022558,2]
[340321838,1729045842603,-500.0,0.00022558,2]
[340321840,1729045842613,-500.0,0.00022558,2]
[340321842,1729045842622,-500.0,0.00022558,2]
[340321844,1729045842632,-500.0,0.00022558,2]
[340321845,1729045842642,-500.0,0.00022558,2]
[340321846,1729045842653,-593.44503635,0.00022558,2]
[340321847,1729045842663,-500.0,0.00022558,2]
[340321848,1729045842672,-500.0,0.00022558,2]
[340321849,1729045842682,-500.0,0.00022558,2]
[340321850,1729045842691,-500.0,0.00022558,2]
[340321851,1729045842701,-559.8,0.00022558,2]
[340321854,1729045842811,-500.0,0.00022558,2]
[340321857,1729045842823,-500.0,0.00022558,2]
[340321859,1729045842832,-1567.23,0.00022558,2]
[340321861,1729045842843,-500.0,0.00022558,2]
[340321863,1729045842853,-500.0,0.00022558,2]
[340321865,1729045842862,-500.0,0.00022558,2]
[340321866,1729045842871,-500.0,0.00022558,2]
[340321868,1729045842880,-500.0,0.00022558,2]
[340321871,1729045842891,-500.0,0.00022558,2]
[340321873,1729045842901,-500.0,0.00022558,2]
[340321875,1729045842912,-500.0,0.00022558,2]
[340321877,1729045842921,-509.10921109,0.00022558,2]
[340321879,1729045842931,-535.43362687,0.00022558,2]
[340321881,1729045842941,-500.0,0.00022558,2]
[340321883,1729045842951,-556.55931503,0.00022558,2]
[340321885,1729045842960,-500.0,0.00022558,2]
[340321887,1729045842970,-576.67660822,0.00022558,2]
[340321889,1729045842979,-500.0,0.00022558,2]
[340321891,1729045842990,-500.0,0.00022558,2]
[340321893,1729045843000,-500.0,0.00022558,2]
[340321895,1729045843010,-500.0,0.00022558,2]
[340321897,1729045843020,-500.0,0.00022558,2]
[340321899,1729045843030,-571.44016914,0.00022558,2]
[340321901,1729045843040,-500.0,0.00022558,2]
[340321903,1729045843049,-500.0,0.00022558,2]
[340321905,1729045843059,-500.0,0.00022558,2]
[340321907,1729045843068,-500.0,0.00022558,2]
[340321909,1729045843079,-1645.85,0.00022558,2]
[340321911,1729045843089,-500.0,0.00022558,2]
[340321913,1729045843098,-500.0,0.00022558,2]
[340321915,1729045843108,-500.0,0.00022558,2]
[340321917,1729045843117,-500.0,0.00022558,2]
[340321919,1729045843127,-227.39838934,0.00022558,2]
[340321921,1729045843136,-500.0,0.00022558,2]
[340321923,1729045843147,-504.21174473,0.00022558,2]
[340321925,1729045843158,-506.60814467,0.00022558,2]
[340321927,1729045843167,-500.0,0.00022558,2]
[340321929,1729045843177,-1096.54,0.00022558,2]
[340321931,1729045843187,-500.0,0.00022558,2]
[340321933,1729045843196,-500.0,0.00022558,2]
[340321935,1729045843206,-500.0,0.00022558,2]
[340321937,1729045843216,-500.0,0.00022558,2]
[340321939,1729045843225,-500.0,0.00022558,2]
[340321941,1729045843235,-500.0,0.00022558,2]
[340321943,1729045843244,-500.0,0.00022558,2]
[340321945,1729045843253,-6921.85,0.00022558,2]
[340321947,1729045843263,-201.30944034,0.00022558,2]
[340321949,1729045843273,-500.0,0.00022558,2]
[340321951,1729045843282,-2024.144088,0.00022558,7]
[340321953,1729045843292,-500.0,0.00022558,2]
[340321955,1729045843302,-2024.144088,0.00022558,7]
[340321957,1729045843312,-500.0,0.00022558,2]
[340321959,1729045843321,-500.0,0.00022558,2]
[340321961,1729045843331,-227.59688047,0.00022558,2]
[340321963,1729045843341,-500.0,0.00022558,2]
[340321965,1729045843351,-500.0,0.00022558,2]
[340321967,1729045843361,-161.746194,0.00022558,7]
[340321970,1729045843370,-228.3291519,0.00022558,2]
[340321972,1729045843380,-500.0,0.00022558,2]
[340321974,1729045843389,-161.746194,0.00022558,7]
[340321975,1729045843398,-6465.13,0.00022558,2]
[340321977,1729045843409,-500.0,0.00022558,2]
[340321980,1729045843421,-500.0,0.00022558,2]
[340321982,1729045843432,-314.099061,0.00022558,7]